bitfinex/quotes_SOLUSD_20241125
["timestamp","ask_amount","ask_price","bid_price","bid_amount"]
[1732526891689,10.77948042,255.11,254.91,19.7027]
[1732526891890,23.776884,255.1,254.91,19.7027]
[1732526893201,23.776884,255.1,254.94,20.0]
[1732526893575,10.77948042,255.09,254.94,20.0]
[1732526893995,23.776884,255.08,254.94,20.0]
[1732526894195,10.77948042,255.06,254.91,19.7027]
[1732526894493,23.776884,255.05,254.91,19.7027]
[1732526895468,23.776884,255.05,254.94,20.0]
[1732526897093,23.776884,255.07,254.94,20.0]
[1732526899173,10.77948042,255.06,254.94,20.0]
[1732526899406,10.77948042,255.04,254.94,20.0]
[1732526899588,23.776884,255.03,254.94,20.0]
[1732526900503,23.776884,255.05,254.94,20.0]
[1732526900799,23.776884,255.07,254.94,20.0]
[1732526901793,23.776884,255.05,254.94,20.0]
[1732526904480,10.77948042,255.04,254.94,20.0]
[1732526904681,23.776884,255.03,254.94,20.0]
[1732526904885,10.77948042,255.02,254.91,19.7027]
[1732526905091,23.776884,255.01,254.91,19.7027]
[1732526905685,23.776884,254.99,254.91,19.7027]
[1732526906489,23.776884,254.97,254.85,19.7027]
[1732526906690,23.776884,254.95,254.85,19.7027]
[1732526907702,23.776884,254.93,254.78,19.7027]
[1732526908296,23.776884,254.91,254.78,19.7027]
[1732526909690,23.776884,254.91,254.81,20.0]
[1732526911610,23.776884,254.89,254.78,19.7027]
[1732526913207,23.776884,254.89,254.75,4.9009]
[1732526913513,23.776884,254.89,254.75,24.9009]
[1732526913718,23.776884,254.87,254.75,20.0]
[1732526914310,23.776884,254.89,254.75,20.0]
[1732526914997,23.776884,254.87,254.75,20.0]
[1732526916309,23.776884,254.89,254.75,20.0]
[1732526916710,23.776884,254.9,254.75,20.0]
[1732526916898,23.776884,254.88,254.75,20.0]
[1732526917610,23.776884,254.9,254.75,20.0]
[1732526919713,10.77948042,254.93,254.75,20.0]
[1732526920913,23.776884,254.92,254.75,20.0]
[1732526921913,10.77948042,254.91,254.75,20.0]
[1732526922108,23.776884,254.9,254.75,20.0]
[1732526923291,10.77948042,254.89,254.72,19.7027]
[1732526923498,23.776884,254.88,254.72,19.7027]
[1732526924119,23.776884,254.88,254.73,3.913]
[1732526924798,23.776884,254.88,254.75,20.0]
[1732526926307,30.67901461,254.92,254.75,20.0]
[1732526927513,23.776884,254.92,254.75,20.0]
[1732526927714,30.67901461,254.92,254.75,20.0]
[1732526929513,23.776884,254.93,254.75,20.0]
[1732526930316,6.90213061,254.92,254.75,20.0]
[1732526930508,23.776884,254.91,254.75,20.0]
[1732526935002,30.67901461,254.93,254.75,20.0]
[1732526935222,23.776884,254.93,254.76,4.9009]
[1732526935412,12.451,254.94,254.78,39.7027]
[1732526935615,30.7183,254.95,254.81,20.0]
[1732526937016,23.776884,254.94,254.81,20.0]
[1732526938927,23.776884,254.99,254.81,24.40751531]
[1732526939099,23.776884,254.99,254.82,4.40751531]
[1732526940611,12.3397,255.0,254.82,4.40751531]
[1732526942027,23.776884,254.99,254.82,4.40751531]
[1732526943509,6.90213061,254.98,254.82,4.40751531]
[1732526943710,23.776884,254.97,254.81,20.0]
[1732526943907,23.776884,254.97,254.78,19.7027]
[1732526945330,23.776884,254.97,254.81,20.0]
[1732526945827,23.776884,254.95,254.81,20.0]
[1732526946532,12.3397,255.0,254.81,20.0]
[1732526946706,12.3397,255.0,254.81,24.40751531]
[1732526947016,12.3397,255.0,254.76,8.73793209]
[1732526947017,12.3397,255.0,254.85,20.0]
[1732526947218,6.90213061,254.99,254.85,20.0]
[1732526947416,6.90213061,254.97,254.85,20.0]
[1732526948735,23.776884,254.96,254.85,20.0]
[1732526950012,23.776884,254.98,254.85,20.0]
[1732526950733,27.698684,254.98,254.85,20.0]
[1732526952227,6.90213061,254.97,254.85,20.0]
[1732526952524,23.776884,254.96,254.85,20.0]
[1732526953626,23.776884,254.97,254.85,20.0]
[1732526953830,23.776884,254.99,254.85,20.0]
[1732526954022,12.3397,255.0,254.85,20.0]
[1732526954223,12.3397,255.0,254.86,20.0]
[1732526954435,3.9213,255.02,254.86,20.0]
[1732526955012,6.90213061,255.03,254.86,20.0]
[1732526955430,23.776884,255.02,254.86,20.0]
[1732526957234,6.90213061,255.01,254.86,20.0]
[1732526959229,6.90213061,255.01,254.87,20.0]
[1732526959631,30.67901461,255.03,254.86,20.0]
[1732526959841,34.60011461,255.03,254.86,20.0]
[1732526960540,30.67901461,255.03,254.86,20.0]
[1732526960745,30.67901461,255.05,254.87,19.7027]
[1732526961039,30.67901461,255.05,254.9,20.0]
[1732526962142,30.67901461,255.06,254.9,20.0]
[1732526963145,23.776884,255.07,254.91,20.0]
[1732526964029,23.776884,255.05,254.91,20.0]
[1732526965725,30.67901461,255.08,254.91,20.0]
[1732526966542,34.59941461,255.08,254.91,20.0]
[1732526966840,23.776884,255.09,254.95,20.0]
[1732526968443,6.90213061,255.12,254.96,24.9009]
[1732526968740,10.82163061,255.14,255.0,20.0]
[1732526969743,23.776884,255.13,255.0,20.0]
[1732526970427,6.90213061,255.12,255.0,20.0]
[1732526970634,23.776884,255.09,255.0,20.0]
[1732526970835,6.90213061,255.1,255.0,20.0]
[1732526971651,30.67901461,255.13,255.0,20.0]
[1732526971945,23.776884,255.13,255.0,20.0]
[1732526972151,3.9189,255.17,255.0,20.0]
[1732526972335,6.90213061,255.12,255.0,20.0]
[1732526973241,3.9189,255.17,255.0,20.0]
[1732526973242,11.86207669,255.17,255.0,20.0]
[1732526973549,6.90213061,255.14,255.0,20.0]
[1732526973856,6.90213061,255.12,255.0,20.0]
[1732526975429,3.9193,255.15,255.0,20.0]
[1732526975732,6.90213061,255.13,255.0,20.0]
[1732526975925,3.9193,255.15,255.0,20.0]
[1732526976120,6.90213061,255.13,255.0,20.0]
[1732526981945,6.90213061,255.11,255.0,20.0]
[1732526982246,3.9195,255.13,254.97,19.7027]
[1732526982247,6.90213061,255.06,254.97,19.7027]
[1732526983051,6.90213061,255.04,254.97,19.7027]
[1732526983344,6.90213061,255.02,254.91,19.7027]
[1732526983735,8.00074611,255.06,254.91,19.7027]
[1732526983924,6.90213061,255.03,254.91,19.7027]
[1732526984249,6.90213061,255.03,254.94,20.0]
[1732526986025,23.776884,255.08,254.94,20.0]
[1732526986221,6.90213061,255.05,254.94,20.0]
[1732526986651,6.90213061,255.03,254.94,20.0]
[1732526987749,10.82323061,255.03,254.94,20.0]
[1732526989951,6.90213061,255.01,254.94,20.0]
[1732526990333,6.90213061,255.01,254.91,19.7027]
[1732526990650,6.90213061,254.99,254.91,19.7027]
[1732526990843,6.90213061,254.99,254.85,19.7027]
[1732526991851,6.90213061,254.99,254.88,20.0]
[1732526994157,6.90213061,254.97,254.88,20.0]
[1732526994736,23.776884,254.98,254.88,20.0]
[1732526995946,3.9209,255.04,254.88,20.0]
[1732526996135,6.90213061,255.0,254.88,20.0]
[1732526996859,3.9209,255.04,254.88,20.0]
[1732526997060,6.90213061,255.01,254.88,20.0]
[1732526998136,6.90213061,254.99,254.88,20.0]
[1732526998543,23.776884,254.98,254.88,20.0]
[1732526998935,6.90213061,255.01,254.88,20.0]
[1732526999472,10.82363061,255.01,254.88,20.0]
[1732526999655,6.90213061,254.99,254.88,20.0]
[1732527001271,23.776884,255.0,254.88,20.0]
[1732527001442,3.9215,255.01,254.88,20.0]
[1732527001649,23.776884,255.0,254.88,20.0]
[1732527002369,160.3980339,255.05,254.88,20.0]
[1732527002542,16.7275,255.05,254.88,20.0]
[1732527002978,6.90213061,255.04,254.88,20.0]
[1732527003372,10.82313061,255.04,254.88,20.0]
[1732527004070,6.90213061,255.0,254.88,20.0]
[1732527004251,23.776884,255.01,254.88,20.0]
[1732527004459,6.90213061,255.01,254.88,20.0]
[1732527005376,3.9212,255.02,254.88,20.0]
[1732527005563,23.776884,255.01,254.88,20.0]
[1732527006775,3.921,255.04,254.88,20.0]
[1732527007079,6.90213061,255.03,254.88,20.0]
[1732527007653,10.82323061,255.03,254.88,20.0]
[1732527007872,6.90213061,255.01,254.88,20.0]
[1732527008072,6.90213061,254.99,254.88,20.0]
[1732527008275,6.90213061,255.0,254.88,20.0]
[1732527008661,6.90213061,254.98,254.85,19.7027]
[1732527008864,6.90213061,254.96,254.85,19.7027]
[1732527009676,6.90213061,254.94,254.85,19.7027]
[1732527010481,23.776884,254.99,254.85,19.7027]
[1732527010657,6.90213061,254.98,254.88,20.0]
[1732527010862,10.82363061,255.0,254.88,20.0]
[1732527011075,23.776884,254.99,254.88,20.0]
[1732527011979,27.698584,254.99,254.88,20.0]
[1732527012460,3.9215,255.01,254.88,20.0]
[1732527012665,6.90213061,255.02,254.88,20.0]
[1732527013156,16.7276,255.05,254.88,20.0]
[1732527013480,3.9209,255.05,254.88,20.0]
[1732527013791,6.90213061,255.07,254.96,20.0]
[1732527014083,10.82233061,255.09,254.96,20.0]
[1732527015165,6.90213061,255.05,254.96,20.0]
[1732527017186,3.9206,255.06,254.96,20.0]
[1732527017910,6.90213061,255.05,254.96,20.0]
[1732527018069,10.82293061,255.05,254.96,20.0]
[1732527018779,30.67901461,255.08,254.96,20.0]
[1732527019762,23.776884,255.08,254.96,20.0]
[1732527020184,13.1502,255.11,254.96,20.0]
[1732527020185,10.82213061,255.11,254.96,20.0]
[1732527020576,6.90213061,255.08,254.96,20.0]
[1732527020887,6.90213061,255.06,254.96,20.0]
[1732527021976,27.697184,255.08,254.96,20.0]
[1732527022667,6.90213061,255.09,254.96,20.0]
[1732527023568,33.3095,255.13,255.0,20.0]
[1732527023773,6.90213061,255.12,255.01,20.0]
[1732527026192,6.90213061,255.1,255.01,20.0]
[1732527026368,6.90213061,255.12,255.01,20.0]
[1732527026969,6.90213061,255.1,255.01,20.0]
[1732527027277,23.776884,255.15,255.01,20.0]
[1732527027468,6.90213061,255.12,255.01,20.0]
[1732527028293,10.82193061,255.12,255.01,20.0]
[1732527028691,3.9198,255.12,255.01,20.0]
[1732527028891,6.90213061,255.11,255.01,20.0]
[1732527029695,10.82203061,255.11,255.01,20.0]
[1732527030692,3.9194,255.14,255.01,20.0]
[1732527030905,3.9192,255.16,255.01,20.0]
[1732527031085,6.90213061,255.15,255.01,20.0]
[1732527031399,3.9192,255.16,255.01,20.0]
[1732527031977,6.90213061,255.15,255.01,20.0]
[1732527032175,10.82143061,255.15,255.01,20.0]
[1732527032686,3.9193,255.15,255.01,20.0]
[1732527033393,3.919,255.17,255.02,4.9009]
[1732527033595,3.9187,255.19,255.02,24.9009]
[1732527033913,6.90213061,255.18,255.02,24.9009]
[1732527034080,6.90213061,255.16,255.02,4.9009]
[1732527035299,6.90213061,255.14,255.02,4.9009]
[1732527037406,34.59791461,255.18,255.02,4.9009]
[1732527037606,10.82103061,255.18,255.02,4.9009]
[1732527038404,6.90213061,255.16,255.02,4.9009]
[1732527038807,6.90213061,255.14,255.02,4.9009]
[1732527038991,6.90213061,255.16,255.02,4.9009]
[1732527039404,10.82123061,255.16,255.02,4.9009]
[1732527040081,6.90213061,255.16,255.02,4.9009]
[1732527040894,3.9187,255.19,255.02,4.9009]
[1732527041103,6.90213061,255.18,255.02,4.9009]
[1732527041300,10.82093061,255.18,255.03,20.0]
[1732527042293,6.90213061,255.16,255.03,20.0]
[1732527043489,10.82123061,255.16,255.03,20.0]
[1732527043691,10.82123061,255.16,255.02,4.9009]
[1732527043900,6.90213061,255.14,255.02,4.9009]
[1732527044300,9.7933,255.28,255.12,4.9009]
[1732527044504,10.81953061,255.27,255.12,4.9009]
[1732527045096,3.9174,255.27,255.12,4.9009]
[1732527045408,135.7,255.29,255.12,4.9009]
[1732527045409,10.81933061,255.29,255.16,20.0]
[1732527045713,6.90213061,255.27,255.16,20.0]
[1732527045910,3.9172,255.29,255.12,4.9009]
[1732527046114,7.849146,255.32,255.16,20.0]
[1732527046289,135.7,255.36,255.16,20.0]
[1732527046290,3.9169,255.31,255.16,20.0]
[1732527046487,3.916,255.36,255.2,20.0]
[1732527046689,6.90213061,255.35,255.2,20.0]
[1732527047002,10.81833061,255.35,255.2,20.0]
[1732527047316,6.90213061,255.33,255.2,20.0]
[1732527047817,6.90213061,255.31,255.2,20.0]
[1732527049715,9.7898,255.37,255.2,20.0]
[1732527049922,6.90213061,255.34,255.2,20.0]
[1732527051117,3.9158,255.37,255.2,20.0]
[1732527051315,6.90213061,255.35,255.2,20.0]
[1732527051512,6.90213061,255.31,255.2,20.0]
[1732527052621,6.90213061,255.33,255.2,20.0]
[1732527052921,10.81863061,255.33,255.2,20.0]
[1732527053090,6.90213061,255.31,255.2,20.0]
[1732527053724,6.90213061,255.29,255.2,20.0]
[1732527053920,6.90213061,255.34,255.21,4.9009]
[1732527054796,30.67901461,255.36,255.21,4.9009]
[1732527054995,34.59501461,255.36,255.21,4.9009]
[1732527056418,10.81813061,255.36,255.21,4.9009]
[1732527056620,10.81793061,255.38,255.25,20.0]
[1732527056808,6.90213061,255.38,255.25,20.0]
[1732527059506,10.81683061,255.45,255.29,20.0]
[1732527060595,7.72472247,255.49,255.29,20.0]
[1732527060799,6.90213061,255.46,255.3,4.9009]
[1732527061727,3.9146,255.45,255.3,4.9009]
[1732527062830,23.776884,255.48,255.31,19.7027]
[1732527063004,6.90213061,255.49,255.34,20.0]
[1732527065123,10.81623061,255.49,255.34,20.0]
[1732527065626,6.90213061,255.47,255.34,20.0]
[1732527065807,6.90213061,255.45,255.34,20.0]
[1732527066824,3.9148,255.44,255.34,20.0]
[1732527067210,6.90213061,255.4,255.31,19.7027]
[1732527067438,6.90213061,255.38,255.31,19.7027]
[1732527068114,6.90213061,255.4,255.31,19.7027]
[1732527068425,6.90213061,255.41,255.34,20.0]
[1732527069129,3.9154,255.4,255.34,20.0]
[1732527069837,6.90213061,255.39,255.34,20.0]
[1732527070133,30.67901461,255.43,255.34,20.0]
[1732527070452,6.90213061,255.46,255.34,20.0]
[1732527074317,10.73243869,255.51,255.39,20.0]
[1732527074638,10.73243869,255.49,255.39,20.0]
[1732527075935,10.73243869,255.49,255.36,19.7027]
[1732527075936,10.73243869,255.47,255.36,19.7027]
[1732527077235,10.73243869,255.47,255.39,20.0]
[1732527077638,14.64683869,255.47,255.39,20.0]
[1732527078010,10.73243869,255.45,255.39,20.0]
[1732527079917,14.64703869,255.45,255.39,20.0]
[1732527080932,10.73243869,255.45,255.39,20.0]
[1732527081918,10.73243869,255.47,255.39,20.0]
[1732527082627,27.690884,255.5,255.39,20.0]
[1732527083133,10.73243869,255.51,255.39,20.0]
[1732527083316,10.73243869,255.49,255.39,20.0]
[1732527083725,14.64613869,255.51,255.39,20.0]
[1732527083911,10.73243869,255.51,255.39,20.0]
[1732527084923,10.73243869,255.53,255.39,20.0]
[1732527085119,10.73243869,255.55,255.39,24.9009]
[1732527085324,14.64553869,255.55,255.39,24.9009]
[1732527087242,14.64553869,255.55,255.43,20.0]
[1732527087534,10.73243869,255.55,255.43,20.0]
[1732527087734,3.9129,255.57,255.43,20.0]
[1732527087942,10.73243869,255.55,255.43,20.0]
[1732527088121,10.73243869,255.53,255.39,24.9009]
[1732527091321,14.64583869,255.53,255.39,24.9009]
[1732527092624,10.73243869,255.51,255.39,24.9009]
[1732527094134,10.73243869,255.51,255.42,20.0]
[1732527094334,6.87024275,255.5,255.39,24.9009]
[1732527094531,6.87024275,255.52,255.39,24.9009]
[1732527095647,10.78394275,255.52,255.39,24.9009]
[1732527096246,6.87024275,255.5,255.39,24.9009]
[1732527096748,43.5499,255.5,255.29,323.6036]
[1732527096935,6.87024275,255.43,255.29,323.6036]
[1732527097247,6.87024275,255.41,255.29,323.6036]
[1732527098334,10.74444373,255.39,255.32,20.0]
[1732527099248,10.74444373,255.41,255.32,20.0]
[1732527099829,10.74444373,255.37,255.32,20.0]
[1732527100025,10.74444373,255.39,255.32,20.0]
[1732527102352,3.9144,255.47,255.32,20.0]
[1732527102656,10.74444373,255.5,255.36,20.0]
[1732527102840,10.74444373,255.48,255.36,20.0]
[1732527103238,10.74444373,255.5,255.36,20.0]
[1732527103437,10.74444373,255.52,255.37,19.7027]
[1732527103634,10.74444373,255.52,255.4,20.0]
[1732527104828,3.9132,255.55,255.4,20.0]
[1732527105032,10.74444373,255.52,255.4,20.0]
[1732527105648,10.74444373,255.54,255.4,24.9009]
[1732527109256,10.74444373,255.54,255.44,20.0]
[1732527109661,10.74444373,255.54,255.4,24.9009]
[1732527109834,14.65744373,255.56,255.41,23.776884]
[1732527110150,14.65714373,255.58,255.44,20.0]
[1732527110848,45.5019,255.64,255.49,20.0]
[1732527111034,3.9121,255.62,255.49,20.0]
[1732527111231,10.74444373,255.65,255.5,4.9009]
[1732527111434,3.9111,255.68,255.5,4.9009]
[1732527111647,10.74444373,255.66,255.5,4.9009]
[1732527112636,23.776884,255.65,255.5,4.9009]
[1732527113133,43.3654,255.7,255.51,0.58685886]
[1732527113334,10.74444373,255.69,255.53,20.0]
[1732527113544,10.74444373,255.69,255.57,20.0]
[1732527114157,10.74444373,255.67,255.57,20.0]
[1732527114462,10.74444373,255.65,255.57,20.0]
[1732527114758,10.74444373,255.63,255.57,20.0]
[1732527117765,10.74444373,255.61,255.54,19.7027]
[1732527117950,10.74444373,255.61,255.5,4.9009]
[1732527118662,10.74444373,255.59,255.5,4.9009]
[1732527118866,10.74444373,255.59,255.48,19.7027]
[1732527119363,10.74444373,255.57,255.48,19.7027]
[1732527119740,10.74444373,255.55,255.48,19.7027]
[1732527120162,10.74444373,255.55,255.44,4.9009]
[1732527121068,10.74444373,255.55,255.45,20.0]
[1732527121361,10.74444373,255.57,255.45,20.0]
[1732527121877,3.9126,255.59,255.45,20.0]
[1732527121878,10.74444373,255.59,255.46,20.0]
[1732527122998,23.776884,255.62,255.44,4.9009]
[1732527122999,10.74444373,255.56,255.45,20.0]
[1732527123257,23.776884,255.57,255.45,20.0]
[1732527124050,23.776884,255.57,255.47,20.0]
[1732527124249,10.74444373,255.58,255.45,20.0]
[1732527124453,10.74444373,255.6,255.47,20.0]
[1732527125652,10.74444373,255.65,255.51,20.0]
[1732527125867,10.74444373,255.63,255.51,20.0]
[1732527127963,10.74444373,255.65,255.51,20.0]
[1732527129073,10.74444373,255.69,255.55,20.0]
[1732527132059,10.74444373,255.64,255.55,20.0]
[1732527135274,10.74444373,255.66,255.55,20.0]
[1732527135674,10.74444373,255.64,255.55,20.0]
[1732527137775,10.74444373,255.66,255.55,20.0]
[1732527138487,3.911,255.69,255.55,20.0]
[1732527138488,10.74444373,255.64,255.55,20.0]
[1732527138672,10.74444373,255.62,255.55,20.0]
[1732527139178,10.74444373,255.6,255.55,20.0]
[1732527139478,10.74444373,255.62,255.55,20.0]
[1732527140185,10.74444373,255.64,255.55,20.0]
[1732527140356,10.74444373,255.66,255.55,20.0]
[1732527141185,10.74444373,255.68,255.55,20.0]
[1732527141388,10.74444373,255.66,255.55,20.0]
[1732527142084,10.74444373,255.68,255.55,24.9009]
[1732527146080,10.74444373,255.66,255.55,24.9009]
[1732527146877,10.74444373,255.68,255.55,24.9009]
[1732527149687,10.74444373,255.66,255.55,24.9009]
[1732527152076,10.74444373,255.64,255.52,19.7027]
[1732527152282,6.86349803,255.62,255.52,19.7027]
[1732527153672,6.86349803,255.64,255.55,20.0]
[1732527153993,6.86349803,255.62,255.55,20.0]
[1732527154375,10.72474796,255.61,255.55,20.0]
[1732527155172,10.72474796,255.63,255.55,20.0]
[1732527155371,23.776884,255.66,255.55,20.0]
[1732527155688,10.72474796,255.67,255.55,20.0]
[1732527155870,10.72474796,255.69,255.55,20.0]
[1732527156188,10.72474796,255.67,255.55,20.0]
[1732527159074,10.72474796,255.67,255.56,20.0]
[1732527159891,10.72474796,255.67,255.52,19.7027]
[1732527159892,10.72474796,255.65,255.52,19.7027]
[1732527160381,10.72474796,255.67,255.52,19.7027]
[1732527161191,10.72474796,255.67,255.55,20.0]
[1732527165081,10.72474796,255.65,255.55,20.0]
[1732527165680,10.72474796,255.67,255.55,20.0]
[1732527166092,23.776884,255.66,255.55,20.0]
[1732527166486,23.776884,255.68,255.55,20.0]
[1732527168789,27.687984,255.68,255.55,20.0]
[1732527169195,23.776884,255.66,255.55,20.0]
[1732527171495,23.776884,255.64,255.52,19.7027]
[1732527171915,23.776884,255.68,255.52,24.34844031]
[1732527172089,23.776884,255.68,255.53,4.64574031]
[1732527172285,23.25984796,255.71,255.53,9.2916114]
[1732527172286,12.5351,255.71,255.53,9.2916114]
[1732527172686,16.4457,255.71,255.56,20.0]
[1732527172886,10.72474796,255.7,255.56,20.0]
[1732527174087,23.776884,255.69,255.56,20.0]
[1732527174402,30.6368159,255.69,255.56,20.0]
[1732527174907,23.776884,255.7,255.56,20.0]
[1732527175703,27.687684,255.7,255.56,20.0]
[1732527177880,6.8599319,255.69,255.56,20.0]
[1732527179102,6.8599319,255.69,255.56,23.913]
[1732527179308,6.8599319,255.69,255.56,20.0]
[1732527180091,3.9104,255.73,255.56,20.0]
[1732527180296,6.8599319,255.71,255.56,24.64574031]
[1732527182193,30.6368159,255.72,255.61,20.0]
[1732527183200,6.8599319,255.7,255.61,20.0]
[1732527184606,6.8599319,255.68,255.61,20.0]
[1732527185212,6.8599319,255.66,255.61,20.0]
[1732527185410,6.8599319,255.64,255.53,4.64587109]
[1732527185583,6.8599319,255.62,255.53,4.64587109]
[1732527185911,6.8599319,255.62,255.52,19.7027]
[1732527186092,13.1771,255.68,255.52,19.7027]
[1732527186293,6.8599319,255.63,255.52,28.9943114]
[1732527186799,6.8599319,255.63,255.55,20.0]
[1732527187212,23.776884,255.65,255.55,20.0]
[1732527187506,30.6368159,255.65,255.55,20.0]
[1732527188015,30.6368159,255.66,255.55,20.0]
[1732527188390,30.6368159,255.66,255.55,19.5]
[1732527188590,6.8599319,255.64,255.55,19.5]
[1732527188792,23.776884,255.65,255.55,19.5]
[1732527190290,6.8599319,255.64,255.55,19.5]
[1732527190987,23.776884,255.65,255.55,19.5]
[1732527191208,30.6368159,255.65,255.55,19.5]
[1732527192610,23.776884,255.69,255.55,24.14574031]
[1732527192817,30.6368159,255.69,255.55,24.14574031]
[1732527193694,6.8599319,255.69,255.56,4.64574031]
[1732527193998,6.8599319,255.67,255.58,20.0]
[1732527194408,6.8599319,255.67,255.55,24.64587109]
[1732527194798,6.8599319,255.67,255.47,24.13714482]
[1732527194799,12.8777,255.65,255.45,24.13714482]
[1732527194993,6.8599319,255.56,255.42,19.7027]
[1732527195213,6.8599319,255.58,255.43,0.58699346]
[1732527195388,6.8599319,255.58,255.42,19.7027]
[1732527195591,6.8599319,255.56,255.42,19.7027]
[1732527195794,6.8599319,255.54,255.42,19.7027]
[1732527196199,6.8599319,255.56,255.42,19.7027]
[1732527196594,6.8599319,255.53,255.42,19.7027]
[1732527196795,23.776884,255.63,255.42,19.7027]
[1732527196993,6.8599319,255.54,255.45,20.0]
[1732527199027,3.9125,255.59,255.42,19.7027]
[1732527199198,6.8599319,255.52,255.42,19.7027]
[1732527199722,6.8599319,255.52,255.36,35.333092]
[1732527199903,6.8599319,255.46,255.36,19.7027]
[1732527200301,44.7976,255.55,255.36,19.7027]
[1732527200302,6.8599319,255.44,255.36,19.7027]
[1732527200997,6.8599319,255.42,255.36,19.7027]
[1732527202714,6.8599319,255.42,255.39,20.0]
[1732527202921,6.8599319,255.44,255.39,20.0]
[1732527204118,6.8599319,255.43,255.39,20.0]
[1732527206815,6.8599319,255.41,255.32,20.0]
[1732527207325,23.776884,255.4,255.32,20.0]
[1732527207516,6.8599319,255.39,255.32,20.0]
[1732527208627,23.776884,255.4,255.32,20.0]
[1732527208811,43.4759,255.45,255.32,20.0]
[1732527209014,23.776884,255.43,255.32,20.0]
[1732527209518,6.8599319,255.42,255.32,20.0]
[1732527211001,6.8599319,255.4,255.32,20.0]
[1732527211400,6.8599319,255.38,255.32,20.0]
[1732527211601,6.8599319,255.36,255.29,299.0]
[1732527211803,6.8599319,255.34,255.29,299.0]
[1732527212905,6.8599319,255.3,255.29,299.0]
[1732527213210,30.6368159,255.3,255.29,299.0]
[1732527216323,34.53108328,255.3,255.29,299.0]
[1732527217517,10.75419928,255.32,255.29,299.0]
[1732527217835,10.75419928,255.36,255.29,299.0]
[1732527218006,3.9158,255.38,255.32,20.0]
[1732527218007,10.75419928,255.38,255.32,20.0]
[1732527219023,10.75419928,255.36,255.32,20.0]
[1732527219223,10.75419928,255.36,255.29,299.0]
[1732527220321,10.75419928,255.38,255.32,20.0]
[1732527220715,34.53108328,255.4,255.32,20.0]
[1732527221119,10.75419928,255.38,255.32,20.0]
[1732527221627,10.75419928,255.4,255.32,20.0]
[1732527225529,41.54039928,255.42,255.32,20.0]
[1732527225732,10.75419928,255.44,255.32,20.0]
[1732527225910,23.776884,255.46,255.32,20.0]
[1732527225911,34.53108328,255.46,255.32,20.0]
[1732527226110,10.75419928,255.46,255.32,20.0]
[1732527227012,12.5387,255.53,255.32,20.0]
[1732527227212,10.75419928,255.48,255.32,20.0]
[1732527229335,10.75419928,255.52,255.34,10.0]
[1732527229532,10.75419928,255.52,255.34,10.58714938]
[1732527230735,10.75419928,255.5,255.34,0.58714938]
[1732527230913,10.75419928,255.46,255.33,24.6036]
[1732527231324,10.75419928,255.48,255.33,24.6036]
[1732527232524,10.75419928,255.46,255.33,24.6036]
[1732527233036,10.75419928,255.48,255.33,24.6036]
[1732527233537,10.75419928,255.5,255.33,24.6036]
[1732527233837,10.75419928,255.5,255.34,23.776884]
[1732527238411,6.87014409,255.49,255.34,23.776884]
[1732527240714,6.87014409,255.49,255.33,24.6036]
[1732527241333,27.690484,255.52,255.33,24.6036]
[1732527241530,23.776884,255.5,255.33,24.6036]
[1732527242323,23.776884,255.5,255.36,20.0]
[1732527242522,6.87014409,255.51,255.36,20.0]
[1732527245137,10.78384409,255.51,255.36,20.0]
[1732527245345,6.87014409,255.48,255.36,20.0]
[1732527246124,27.689984,255.55,255.36,20.0]